{"text_format":"3","workbook":"xlsx","n_sheets":4,"sheets":["Milstolpar","Översikt","Om","Diagramdata"],"not_rendered":{"charts":1,"defined_names":2},"read":"whole","date_system":"1900"}

{"sheet":"Milstolpar","index":0,"n_rows":27,"n_cols":5,"rows_kept":27}
["Skapa en översikt genom att ange viktiga milstolpar och aktiviteter i det här kalkylbladet.\nRubriken för det här kalkylbladet finns i cell C1. \nInformation om hur du använder det här kalkylbladet, inklusive instruktioner för skärmläsare, finns i kalkylbladet Om.\nFortsätt att navigera nedåt i kolumn A för ytterligare instruktioner.",null,"Milstolpar"]
["Tabellrubrikerna finns i cell C2 till E2. Använda alternativen för att sortera och filtrera till att sortera eller söka efter specifika poster.\nAnge milstolpar med datum och ange en plats för milstolpen i tabellen från cell C3.\nKolumn B är dold. Det finns ett reglage för visning av olika delar av tidslinjen i det här diagrammet. Kolumn B avgör vilka milstolpar som ska ritas upp när du använder reglaget. \nVarning: Om du tar bort eller ändrar innehållet i kolumn B kan du störa dataintegriteten i den här arbetsboken.","Nr.","Position","Datum","Milstolpe"]
["Ange position för uppritning av datum och milstolpe i cell C1. Ange ett positivt tal mellan 1 och 3 i diagrammet för milstolpen ovanför tidslinjen. Ange ett negativt tal mellan -1 och -3 i diagrammet för milstolpen under tidslinjen.\nAnge datum och milstolpe eller aktivitet i kolumn D och E i tabellen.\nUpprepa det här mönstret för varje ny rad i tabellen till höger.\nExempeldata anges i rad 3 till 26. Ändra eller ta bort exempelinnehållet och skapa en egen översikt.\nFortsätt till cell A27 för nästa instruktion.",{"$f":"ROW($A1)","v":1},1,{"$f":"TODAY()","v":"2018-06-29"},"Start"]
[null,{"$f":"ROW($A2)","v":2},-2,{"$f":"D3+10","v":"2018-07-09"},"Problemanalys\naktivitet 1"]
[null,3,1,{"$f":"D4+20","v":"2018-07-29"},"Utveckla företagsärende\naktivitet 1\naktivitet 2"]
[null,4,-1,{"$f":"D5+30","v":"2018-08-28"},"Granska presentation"]
[null,5,{"v":-0.5,"d":"-1"},{"$f":"D6+40","v":"2018-10-07"},"Chef Kickoff\naktivitet 1\naktivitet 2"]
[null,6,2,{"$f":"D7+50","v":"2018-11-26"},"Chef Justering\naktivitet 1\naktivitet 2\naktivitet 3"]
[null,7,{"v":0.5,"d":"1"},{"$f":"D8+60","v":"2019-01-25"},"Intressent Inköp"]
[null,8,-1,{"$f":"D9+70","v":"2019-04-05"},"Resursval"]
[null,9,{"v":0.5,"d":"1"},{"$f":"D10+80","v":"2019-06-24"},"Skapa team\naktivitet 1 "]
[null,10,-2,{"$f":"D11+90","v":"2019-09-22"},"Team Kickoff\naktivitet 1 \naktivitet 2\naktivitet 3\naktivitet 4"]
[null,11,3,{"$f":"D12+100","v":"2019-12-31"},"Starta datainsamling"]
[null,12,-1,{"$f":"D13+90","v":"2020-03-30"},"Dataanalys"]
[null,13,1,{"$f":"D14+80","v":"2020-06-18"},"Design"]
[null,14,1,{"$f":"D15+70","v":"2020-08-27"},"Konceptbeskrivning"]
[null,15,-3,{"$f":"D16+60","v":"2020-10-26"},"Test och analys"]
[null,16,-2,{"$f":"D17+50","v":"2020-12-15"},"Designa om"]
[null,17,2,{"$f":"D18+40","v":"2021-01-24"},"Utveckla om"]
[null,18,-1,{"$f":"D19+30","v":"2021-02-23"},"Test och analys"]
[null,19,1,{"$f":"D20+20","v":"2021-03-15"},"Designa om"]
[null,20,-3,{"$f":"D21+10","v":"2021-03-25"},"Utveckla om"]
[null,21,2,{"$f":"D22+20","v":"2021-04-14"},"Sluttest"]
[null,22,1,{"$f":"D23+30","v":"2021-05-14"},"Betatest"]
[null,23,-3,{"$f":"D24+40","v":"2021-06-23"},"Granska"]
[null,24,-2,{"$f":"D25+50","v":"2021-08-12"},"Släpp till marknadsföring"]
["Infoga helt enkelt en ny rad ovanför den här om du vill lägga till fler rader i översiktstabellen.\nDet finns inga fler instruktioner i det här kalkylbladet.",null,"Infoga nya rader ovanför den här om du vill lägga till fler milstolpar."]

{"sheet":"Översikt","index":1,"n_rows":3,"n_cols":4,"rows_kept":3}
["Ett diagram med milstolparna i det här kalkylbladet. \nÅr anges i cellerna B2, C2 och D2 och formatmallen Rubrik 3 används.\n10 milstolpar ritas upp i taget. \nAnvänd rullningslisten i cell B4 till D4 till att navigera i översikten.\nTidslinjen finns i cellerna B3 till D3.\nDet finns inga fler instruktioner i det här kalkylbladet."]
[]
[null,{"$f":"Diagramdata!B20","v":2018},{"$f":"Diagramdata!B21","v":""},{"$f":"Diagramdata!B22","v":2019}]

{"sheet":"Om","index":2,"n_rows":5,"n_cols":1,"rows_kept":5}
["Om den här arbetsboken"]
["Vägledning för skärmläsare"]
["Det finns 4 kalkylblad i arbetsboken. \n\nMilstolpar\nÖversikt\nOm\nDiagramdata (dolt)\n\nInstruktioner för varje kalkylblad finns i kolumn A, med början i cell A1, på varje kalkylblad. De är skrivna med dold text. Varje steg ger information om den aktuella raden. Varje efterföljande steg fortsätter i cell A2, A3 och så vidare, såvida inte annars uttryckligen sägs. Till exempel kan instruktionstexten lyda: ”gå till cell A6” för nästa steg. \n\nDold text skrivs inte ut.\n\nOm du vill ta bort de här instruktionerna från ett kalkylblad tar du helt enkelt bort kolumn A.\n"]
["Den här översikten använder placeringar för milstolpar och aktiviteter. Placeringarna kan användas för att ge en milstolpe eller aktivitet större tyngd. Justera värdena enligt önskemål. Milstolpe/aktivitet 3 kan till exempel vara viktigare än milstolpe/aktivitet 2. Visa detta i diagrammet genom att ange ett högre placeringsvärde för milstolpe/aktivitet 3 än för milstolpe/aktivitet 2.  \n"]
["Det här är den sista instruktionen i det här kalkylbladet."]

{"sheet":"Diagramdata","index":3,"n_rows":26,"n_cols":4,"rows_kept":26,"hidden":true}
["Data för att skapa dynamiska diagram finns i det här kalkylbladet. Ta inte bort kalkylbladet!\nOm du tar bort det här kalkylbladet kan du försämra de dynamiska funktionerna i arbetsboken.","Ta inte bort kalkylbladet!"]
["Rubriken för tabellen är i cell B2.","Innehåll i dynamiskt diagram"]
["Tabellrubrikerna finns i cell B3 till D3. \nDenna tabell uppdateras automatiskt baserat på innehållet som anges i kalkylbladet Milestones (Milstolpar).\nVarning: Om du ändrar eller tar bort innehållet i den här tabellen du störa de dynamiska funktionerna i översikt.\nFortsätt till cell A15 för nästa instruktion.","Datum","Händelser","Position"]
[null,{"$f":"IFERROR(IF(LEN(Milstolpar!D3)=0,\"\",INDEX(ÖversiktMilstolpar[],Milstolpar!$B3+$B$17,3)),\"\")","v":"2018-06-29"},{"$f":"IFERROR(IF(LEN(Milstolpar!E3)=0,\"\",INDEX(ÖversiktMilstolpar[],Milstolpar!$B3+$B$17,4)),\"\")","v":"Start"},{"$f":"IFERROR(INDEX(ÖversiktMilstolpar[],Milstolpar!$B3+$B$17,2),\"\")","v":1}]
[null,{"$f":"IFERROR(IF(LEN(Milstolpar!D4)=0,\"\",INDEX(ÖversiktMilstolpar[],Milstolpar!$B4+$B$17,3)),\"\")","v":"2018-07-09"},{"$f":"IFERROR(IF(LEN(Milstolpar!E4)=0,\"\",INDEX(ÖversiktMilstolpar[],Milstolpar!$B4+$B$17,4)),\"\")","v":"Problemanalys\naktivitet 1"},{"$f":"IFERROR(INDEX(ÖversiktMilstolpar[],Milstolpar!$B4+$B$17,2),\"\")","v":-2}]
[null,{"$f":"IFERROR(IF(LEN(Milstolpar!D5)=0,\"\",INDEX(ÖversiktMilstolpar[],Milstolpar!$B5+$B$17,3)),\"\")","v":"2018-07-29"},{"$f":"IFERROR(IF(LEN(Milstolpar!E5)=0,\"\",INDEX(ÖversiktMilstolpar[],Milstolpar!$B5+$B$17,4)),\"\")","v":"Utveckla företagsärende\naktivitet 1\naktivitet 2"},{"$f":"IFERROR(INDEX(ÖversiktMilstolpar[],Milstolpar!$B5+$B$17,2),\"\")","v":1}]
[null,{"$f":"IFERROR(IF(LEN(Milstolpar!D6)=0,\"\",INDEX(ÖversiktMilstolpar[],Milstolpar!$B6+$B$17,3)),\"\")","v":"2018-08-28"},{"$f":"IFERROR(IF(LEN(Milstolpar!E6)=0,\"\",INDEX(ÖversiktMilstolpar[],Milstolpar!$B6+$B$17,4)),\"\")","v":"Granska presentation"},{"$f":"IFERROR(INDEX(ÖversiktMilstolpar[],Milstolpar!$B6+$B$17,2),\"\")","v":-1}]
[null,{"$f":"IFERROR(IF(LEN(Milstolpar!D7)=0,\"\",INDEX(ÖversiktMilstolpar[],Milstolpar!$B7+$B$17,3)),\"\")","v":"2018-10-07"},{"$f":"IFERROR(IF(LEN(Milstolpar!E7)=0,\"\",INDEX(ÖversiktMilstolpar[],Milstolpar!$B7+$B$17,4)),\"\")","v":"Chef Kickoff\naktivitet 1\naktivitet 2"},{"$f":"IFERROR(INDEX(ÖversiktMilstolpar[],Milstolpar!$B7+$B$17,2),\"\")","v":-0.5}]
[null,{"$f":"IFERROR(IF(LEN(Milstolpar!D8)=0,\"\",INDEX(ÖversiktMilstolpar[],Milstolpar!$B8+$B$17,3)),\"\")","v":"2018-11-26"},{"$f":"IFERROR(IF(LEN(Milstolpar!E8)=0,\"\",INDEX(ÖversiktMilstolpar[],Milstolpar!$B8+$B$17,4)),\"\")","v":"Chef Justering\naktivitet 1\naktivitet 2\naktivitet 3"},{"$f":"IFERROR(INDEX(ÖversiktMilstolpar[],Milstolpar!$B8+$B$17,2),\"\")","v":2}]
[null,{"$f":"IFERROR(IF(LEN(Milstolpar!D9)=0,\"\",INDEX(ÖversiktMilstolpar[],Milstolpar!$B9+$B$17,3)),\"\")","v":"2019-01-25"},{"$f":"IFERROR(IF(LEN(Milstolpar!E9)=0,\"\",INDEX(ÖversiktMilstolpar[],Milstolpar!$B9+$B$17,4)),\"\")","v":"Intressent Inköp"},{"$f":"IFERROR(INDEX(ÖversiktMilstolpar[],Milstolpar!$B9+$B$17,2),\"\")","v":0.5}]
[null,{"$f":"IFERROR(IF(LEN(Milstolpar!D10)=0,\"\",INDEX(ÖversiktMilstolpar[],Milstolpar!$B10+$B$17,3)),\"\")","v":"2019-04-05"},{"$f":"IFERROR(IF(LEN(Milstolpar!E10)=0,\"\",INDEX(ÖversiktMilstolpar[],Milstolpar!$B10+$B$17,4)),\"\")","v":"Resursval"},{"$f":"IFERROR(INDEX(ÖversiktMilstolpar[],Milstolpar!$B10+$B$17,2),\"\")","v":-1}]
[null,{"$f":"IFERROR(IF(LEN(Milstolpar!D11)=0,\"\",INDEX(ÖversiktMilstolpar[],Milstolpar!$B11+$B$17,3)),\"\")","v":"2019-06-24"},{"$f":"IFERROR(IF(LEN(Milstolpar!E11)=0,\"\",INDEX(ÖversiktMilstolpar[],Milstolpar!$B11+$B$17,4)),\"\")","v":"Skapa team\naktivitet 1 "},{"$f":"IFERROR(INDEX(ÖversiktMilstolpar[],Milstolpar!$B11+$B$17,2),\"\")","v":0.5}]
[null,{"$f":"IFERROR(IF(LEN(Milstolpar!D12)=0,\"\",INDEX(ÖversiktMilstolpar[],Milstolpar!$B12+$B$17,3)),\"\")","v":"2019-09-22"},{"$f":"IFERROR(IF(LEN(Milstolpar!E12)=0,\"\",INDEX(ÖversiktMilstolpar[],Milstolpar!$B12+$B$17,4)),\"\")","v":"Team Kickoff\naktivitet 1 \naktivitet 2\naktivitet 3\naktivitet 4"},{"$f":"IFERROR(INDEX(ÖversiktMilstolpar[],Milstolpar!$B12+$B$17,2),\"\")","v":-2}]
[]
["Du kan bläddra i översikten med steget som anges. Rubriken för den här funktionen finns i cell B15.\nEn tabell med en rubrik och ett enda värde finns i cell B16 och B17.\nFortsätt till cell A19 för nästa instruktion.","Rullningsfunktion"]
[null,"Ökning per rad"]
[null,0]
[]
["I översikt används år längs tidslinjen. Det gör att åren måste hämtas från milstolpelistan. \nRubrik för det här avsnittet är ”År” i cell B19. \nVärdena för år genereras automatiskt i cell C20 till C22.\nVarning: Om du tar bort eller ändrar de här åren kan du störa översikt.\nFortsätt till cell A24 för nästa instruktion.","År"]
[null,{"$f":"IFERROR(YEAR(B4),\"\")","v":2018},"< – året för startpositionen på översikten"]
[null,{"$f":"IFERROR(IF(YEAR($B$9)=$B$20,\"\",YEAR($B$9)),\"\")","v":""},"< – året för mittpositionen på översikten, observera att det här kan vara tomt om det är samma år som startpositionen för översikten"]
[null,{"$f":"IFERROR(IF(YEAR($B$13)=$B$20,\"\",YEAR($B$13)),\"\")","v":2019},"< – året för slutpositionen på översikten, observera att det här kan vara tomt om det är samma år som startpositionen för översikten"]
[]
["Brytpunkter i översiktsdiagrammet innehåller datum från det dynamiska diagrammet i det här kalkylbladet. Datumen är det första datumet i cell C24, mittendatumet i cell C25 och det sista datumet i cell C26.\nDet finns inga fler instruktioner i det här kalkylbladet.","Första datum",{"$f":"B4","v":"2018-06-29"}]
[null,"Mittersta datum",{"$f":"B9","v":"2018-11-26"}]
[null,"Sista datum",{"$f":"B13","v":"2019-09-22"}]